[Event "EYTCC U18 Open 2019"]
[Site "Pardubice"]
[Date "2019.07.12"]
[Round "2.27"]
[White "Emanuel, Yahav"]
[Black "Morgunov, Daniel"]
[Result "1/2-1/2"]
[ECO "B92"]
[WhiteElo "2359"]
[BlackElo "2316"]
[Annotator "NA"]
[PlyCount "84"]
[EventDate "2019.07.11"]
[EventType "swiss"]
[EventCountry "CZE"]
[SourceTitle "playchess.com"]
[Source "ChessBase"]
[SourceQuality "1"]
[WhiteTeam "Israel"]
[BlackTeam "Austria"]
[WhiteTeamCountry "ISR"]
[BlackTeamCountry "AUT"]
[TimeControl "40/5400+30:1800+30"]

1. e4 {[%emt 0:00:00]} c5 {[%emt 0:00:00]} 2. Nf3 {[%emt 0:00:00]} d6 {[%emt 0:00:00]} 3. d4 {[%emt 0:00:00]} cxd4 {[%emt 0:00:00]} 4. Nxd4 {[%emt 0:00:00]} Nf6 {[%emt 0:00:00]} 5. Nc3 {[%emt 0:00:07]} a6 {[%emt 0:00:00]} 6. Be2 {[%emt 0:00:16]} e5 {[%emt 0:00:00]} 7. Nb3 {[%emt 0:00:07]} Be7 {[%emt 0:00:07]} 8. O-O {[%emt 0:00:18]} O-O {[%emt 0:00:04]} 9. Kh1 {[%emt 0:00:33]} Re8 {[%emt 0:00:09]} 10. f4 {[%emt 0:06:07]} b5 {[%emt 0:00:14]} 11. a4 {[%emt 0:06:45]} b4 {[%emt 0:01:54]} 12. Nd5 {[%emt 0:00:12]} Bb7 {[%emt 0:07:56]} 13. Bf3 {[%emt 0:09:07]} Nbd7 {[%emt 0:12:40]} 14. a5 {[%emt 0:07:14]} Nxd5 {[%emt 0:03:06]} 15. exd5 {[%emt 0:02:03]} Bf6 {[%emt 0:00:14]} 16. Ra4 {[%emt 0:04:11]} e4 {[%emt 0:09:51]} 17. Be2 {[%emt 0:01:31]} Nc5 {[%emt 0:04:34]} 18. Rxb4 {[%emt 0:00:20]} Rb8 {[%emt 0:11:14]} 19. Be3 {[%emt 0:12:20]} Ba8 {[%emt 0:14:57]} 20. Rxb8 {[%emt 0:01:21]} Qxb8 {[%emt 0:00:05]} 21. Nxc5 {[%emt 0:07:55]} dxc5 {[%emt 0:00:09]} 22. Bxc5 {[%emt 0:00:39]} Rd8 {[%emt 0:07:26]} 23. c4 {[%emt 0:04:14]} Qxb2 {[%emt 0:03:28]} 24. Bb6 {[%emt 0:04:17]} Rb8 {[%emt 0:04:38]} 25. Bc7 {[%emt 0:13:49]} Rf8 {[%emt 0:05:33]} 26. Bg4 {[%emt 0:05:27]} g6 {[%emt 0:09:20]} 27. Qc1 {[%emt 0:06:05]} Qa2 {[%emt 0:02:03]} 28. Bb6 {[%emt 0:01:50]} Re8 {[%emt 0:01:20]} 29. Rf2 {[%emt 0:02:06]} Qa4 {[%emt 0:00:45]} 30. Bd1 {[%emt 0:00:35]} Qb4 {[%emt 0:00:39]} 31. Be2 {[%emt 0:02:11]} Bd8 {[%emt 0:02:25]} 32. Qe3 {[%emt 0:01:58]} Bf6 {[%emt 0:00:32]} 33. Rf1 {[%emt 0:00:45]} Bc3 {[%emt 0:00:25]} 34. Rd1 {[%emt 0:00:29]} Bf6 {[%emt 0:00:34]} 35. c5 {[%emt 0:01:34]} Bxd5 {[%emt 0:00:15]} 36. Bxa6 {[%emt 0:00:35]} Bc4 {[%emt 0:00:46]} 37. Bb7 {[%emt 0:00:40]} Qa4 {[%emt 0:00:27]} 38. Rc1 {[%emt 0:00:40]} Bb2 {[%emt 0:00:26]} 39. Re1 {[%emt 0:00:28]} Bb5 {[%emt 0:00:27]} 40. h3 {[%emt 0:00:38]} Bd4 {[%emt 0:00:20]} 41. Qg3 {[%emt 0:09:11]} Qc2 {[%emt 0:09:12]} 42. c6 {[%emt 0:02:24]} Bxb6 {[%emt 0:05:29]} 1/2-1/2

[Event "EYTCC U18 Open 2019"]
[Site "Pardubice"]
[Date "2019.07.12"]
[Round "2.28"]
[White "Morgunov, Marc"]
[Black "Globus, Or"]
[Result "1-0"]
[ECO "C78"]
[WhiteElo "2314"]
[BlackElo "2352"]
[Annotator "NA"]
[PlyCount "49"]
[EventDate "2019.07.11"]
[EventType "swiss"]
[EventCountry "CZE"]
[SourceTitle "playchess.com"]
[Source "ChessBase"]
[SourceQuality "1"]
[WhiteTeam "Austria"]
[BlackTeam "Israel"]
[WhiteTeamCountry "AUT"]
[BlackTeamCountry "ISR"]
[TimeControl "40/5400+30:1800+30"]

1. e4 {[%emt 0:00:00]} e5 {[%emt 0:00:00]} 2. Nf3 {[%emt 0:00:00]} Nc6 {[%emt 0:00:04]} 3. Bb5 {[%emt 0:00:00]} a6 {[%emt 0:00:08]} 4. Ba4 {[%emt 0:00:00]} Nf6 {[%emt 0:00:14]} 5. O-O {[%emt 0:00:00]} b5 {[%emt 0:00:10]} 6. Bb3 {[%emt 0:00:00]} Bc5 {[%emt 0:00:05]} 7. a4 {[%emt 0:00:15]} Rb8 {[%emt 0:00:11]} 8. Nxe5 {[%emt 0:00:17]} Nxe5 {[%emt 0:00:38]} 9. d4 {[%emt 0:00:06]} Bxd4 {[%emt 0:00:03]} 10. Qxd4 {[%emt 0:00:05]} d6 {[%emt 0:00:21]} 11. f3 {[%emt 0:00:12]} c5 {[%emt 0:16:27]} 12. Qf2 {[%emt 0:00:13]} c4 {[%emt 0:01:32]} 13. Ba2 {[%emt 0:00:20]} O-O {[%emt 0:01:17]} 14. Be3 {[%emt 0:04:58]} Be6 {[%emt 0:09:25]} 15. Nd2 {[%emt 0:22:13]} Qc7 {[%emt 0:20:33]} 16. Bd4 {[%emt 0:08:18]} Nfd7 {[%emt 0:07:56]} 17. f4 {[%emt 0:12:06]} Ng4 {[%emt 0:01:30]} 18. Qh4 {[%emt 0:00:19]} f5 {[%emt 0:07:18]} 19. Qe7 {[%emt 0:02:01]} Bf7 {[%emt 0:00:17]} 20. Qg5 {[%emt 0:08:46]} Ngf6 {[%emt 0:02:28]} 21. Qxf5 {[%emt 0:02:00]} bxa4 {[%emt 0:04:36]} 22. Qh3 {[%emt 0:10:55]} Rfe8 {[%emt 0:05:39]} 23. Rae1 {[%emt 0:02:04]} Rbc8 {[%emt 0:02:33]} 24. e5 {[%emt 0:04:12]} dxe5 {[%emt 0:09:07]} 25. fxe5 {[%emt 0:00:09]} 1-0

[Event "EYTCC U18 Open 2019"]
[Site "Pardubice"]
[Date "2019.07.12"]
[Round "2.29"]
[White "Engel, Luis"]
[Black "Van Foreest, Lucas"]
[Result "1-0"]
[ECO "C67"]
[WhiteElo "2509"]
[BlackElo "2521"]
[Annotator "ChessBase"]
[PlyCount "115"]
[EventDate "2019.07.11"]
[EventType "swiss"]
[EventCountry "CZE"]
[SourceTitle "playchess.com"]
[Source "ChessBase"]
[SourceQuality "1"]
[WhiteTeam "Germany"]
[BlackTeam "Netherlands"]
[WhiteTeamCountry "GER"]
[BlackTeamCountry "NED"]
[TimeControl "40/5400+30:1800+30"]

1. e4 {[%emt 0:00:00]} e5 {[%emt 0:00:00]} 2. Nf3 {[%emt 0:00:00]} Nc6 {[%emt 0:00:00]} 3. Bb5 {[%emt 0:00:00]} Nf6 {[%emt 0:00:00]} 4. O-O {[%emt 0:00:00]} Nxe4 {[%emt 0:00:00]} 5. Re1 {[%emt 0:00:00]} Nd6 {[%emt 0:00:05]} 6. a4 {[%emt 0:00:01]} Be7 {[%emt 0:08:56]} 7. Nc3 {[%emt 0:00:06]} O-O {[%emt 0:01:05]} 8. d4 {[%emt 0:00:05]} e4 {[%emt 0:09:40]} 9. Nxe4 {[%emt 0:00:40]} Nxe4 {[%emt 0:00:22]} 10. Rxe4 {[%emt 0:00:07]} d5 {[%emt 0:00:07]} 11. Re3 {[%emt 0:02:01]} f6 {[%emt 0:11:41]} 12. c3 {[%emt 0:09:44]} Bd6 {[%emt 0:11:46]} 13. Bd3 {[%emt 0:05:35]} Ne7 {[%emt 0:02:06]} 14. Qc2 {[%emt 0:01:15]} g6 {[%emt 0:03:00]} 15. Nh4 {[%emt 0:08:25]} Rf7 {[%emt 0:00:39]} 16. Bd2 {[%emt 0:04:15]} g5 {[%emt 0:03:42]} 17. Nf3 {[%emt 0:08:46]} Bg4 {[%emt 0:00:20]} 18. h3 {[%emt 0:02:38]} Bh5 {[%emt 0:00:53]} 19. Nh2 {[%emt 0:02:24]} Bxh2+ {[%emt 0:03:44]} 20. Kxh2 {[%emt 0:00:24]} Bg6 {[%emt 0:00:03]} 21. Rae1 {[%emt 0:02:37]} Qd7 {[%emt 0:04:18]} 22. f4 {[%emt 0:07:27]} Bxd3 {[%emt 0:02:31]} 23. Qxd3 {[%emt 0:00:11]} Nf5 {[%emt 0:00:33]} 24. Rf3 {[%emt 0:06:45]} g4 {[%emt 0:00:08]} 25. hxg4 {[%emt 0:00:33]} Nd6 {[%emt 0:00:03]} 26. f5 {[%emt 0:03:15]} Ne4 {[%emt 0:00:03]} 27. Bh6 {[%emt 0:03:21]} Qxa4 {[%emt 0:02:15]} 28. c4 {[%emt 0:03:40]} Qb4 {[%emt 0:01:09]} 29. Rfe3 {[%emt 0:00:45]} Qd6+ {[%emt 0:01:49]} 30. g3 {[%emt 0:00:37]} c6 {[%emt 0:00:05]} 31. c5 {[%emt 0:06:38]} Qd7 {[%emt 0:00:37]} 32. b4 {[%emt 0:01:19]} Re7 {[%emt 0:03:54]} 33. Kg2 {[%emt 0:01:14]} b6 {[%emt 0:03:26]} 34. Qb3 {[%emt 0:02:16]} Kh8 {[%emt 0:04:28]} 35. Qd1 {[%emt 0:05:13]} bxc5 {[%emt 0:00:41]} 36. dxc5 {[%emt 0:00:26]} Rae8 {[%emt 0:10:22]} 37. Qd4 {[%emt 0:00:52]} Kg8 {[%emt 0:00:13]} 38. Ra1 {[%emt 0:06:20]} Qc7 {[%emt 0:06:15]} 39. Bf4 {[%emt 0:02:23]} Qc8 {[%emt 0:02:19]} 40. b5 {[%emt 0:02:41]} Qb7 {[%emt 0:01:04]} 41. bxc6 {[%emt 0:07:23]} Qxc6 {[%emt 0:00:17]} 42. Rd1 {[%emt 0:03:13]} Rd7 {[%emt 0:02:40]} 43. g5 {[%emt 0:03:11]} fxg5 {[%emt 0:04:30]} 44. Bxg5 {[%emt 0:00:06]} Kf7 {[%emt 0:02:11]} 45. Rxe4 {[%emt 0:04:39]} Rxe4 {[%emt 0:00:06]} 46. Qh8 {[%emt 0:00:07]} Qxc5 {[%emt 0:06:21]} 47. Qxh7+ {[%emt 0:00:27]} Ke8 {[%emt 0:00:35]} 48. Qg6+ {[%emt 0:00:10]} Rf7 {[%emt 0:06:41]} 49. Rc1 {[%emt 0:01:28]} Rc4 {[%emt 0:01:00]} 50. Qe6+ {[%emt 0:03:16]} Re7 {[%emt 0:00:07]} 51. Qg8+ {[%emt 0:01:54]} Kd7 {[%emt 0:00:01]} 52. Bxe7 {[%emt 0:00:10]} Kxe7 {[%emt 0:02:59]} 53. Rf1 {[%emt 0:02:52]} Rc2+ {[%emt 0:00:41]} 54. Kh3 {[%emt 0:00:05]} Qc4 {[%emt 0:07:17]} 55. f6+ {[%emt 0:02:32]} Kd7 {[%emt 0:00:09]} 56. Qf7+ {[%emt 0:02:22]} Kc6 {[%emt 0:01:41]} 57. Qe6+ {[%emt 0:00:06]} Kc7 {[%emt 0:00:51]} 58. Rf4 {[%emt 0:01:46]} 1-0

[Event "EYTCC U18 Open 2019"]
[Site "Pardubice"]
[Date "2019.07.12"]
[Round "2.30"]
[White "Schoppen, Casper"]
[Black "Buckels, Valentin"]
[Result "1-0"]
[ECO "A17"]
[WhiteElo "2493"]
[BlackElo "2451"]
[Annotator "ChessBase"]
[PlyCount "79"]
[EventDate "2019.07.11"]
[EventType "swiss"]
[EventCountry "CZE"]
[SourceTitle "playchess.com"]
[Source "ChessBase"]
[SourceQuality "1"]
[WhiteTeam "Netherlands"]
[BlackTeam "Germany"]
[WhiteTeamCountry "NED"]
[BlackTeamCountry "GER"]
[TimeControl "40/5400+30:1800+30"]

1. Nf3 {[%emt 0:00:00]} Nf6 {[%emt 0:00:00]} 2. c4 {[%emt 0:00:00]} e6 {[%emt 0:00:00]} 3. Nc3 {[%emt 0:00:00]} Bb4 {[%emt 0:00:46]} 4. Qc2 {[%emt 0:00:00]} d6 {[%emt 0:02:36]} 5. g3 {[%emt 0:00:00]} a5 {[%emt 0:05:40]} 6. Bg2 {[%emt 0:00:37]} e5 {[%emt 0:01:12]} 7. O-O {[%emt 0:00:40]} O-O {[%emt 0:01:05]} 8. d4 {[%emt 0:05:54]} Nc6 {[%emt 0:10:12]} 9. d5 {[%emt 0:04:16]} Ne7 {[%emt 0:02:57]} 10. Nd2 {[%emt 0:21:50]} Bxc3 {[%emt 0:10:01]} 11. Qxc3 {[%emt 0:00:11]} c6 {[%emt 0:01:11]} 12. dxc6 {[%emt 0:06:44]} bxc6 {[%emt 0:03:13]} 13. b3 {[%emt 0:02:46]} Bg4 {[%emt 0:06:44]} 14. Re1 {[%emt 0:00:34]} Nd7 {[%emt 0:03:42]} 15. Ba3 {[%emt 0:02:54]} Qc7 {[%emt 0:04:56]} 16. Ne4 {[%emt 0:03:00]} c5 {[%emt 0:04:58]} 17. Qd2 {[%emt 0:00:45]} Ra6 {[%emt 0:21:23]} 18. Qg5 {[%emt 0:05:19]} Ng6 {[%emt 0:00:52]} 19. Qxg4 {[%emt 0:00:19]} f5 {[%emt 0:00:00]} 20. Qg5 {[%emt 0:02:38]} fxe4 21. Bxe4 {[%emt 0:00:06]} Rf6 {[%emt 0:00:44]} 22. Rad1 {[%emt 0:03:58]} Ndf8 {[%emt 0:01:58]} 23. Rf1 {[%emt 0:03:21]} Ne6 {[%emt 0:03:32]} 24. Qg4 {[%emt 0:00:16]} Ne7 {[%emt 0:02:48]} 25. Bb2 {[%emt 0:10:04]} Nd4 {[%emt 0:06:10]} 26. e3 {[%emt 0:01:58]} Ndf5 {[%emt 0:00:29]} 27. Qe2 {[%emt 0:00:52]} a4 {[%emt 0:01:07]} 28. Bc3 {[%emt 0:02:56]} axb3 {[%emt 0:01:08]} 29. axb3 {[%emt 0:00:06]} Qb8 {[%emt 0:01:19]} 30. Qc2 {[%emt 0:00:57]} Rb6 {[%emt 0:03:18]} 31. Ra1 {[%emt 0:02:17]} Rf8 {[%emt 0:00:47]} 32. Ra8 {[%emt 0:01:03]} Qxa8 {[%emt 0:00:07]} 33. Bxa8 {[%emt 0:00:05]} Rxa8 {[%emt 0:00:10]} 34. Ra1 {[%emt 0:00:28]} Rab8 {[%emt 0:00:32]} 35. Ra7 {[%emt 0:02:38]} Rxb3 {[%emt 0:01:08]} 36. Kg2 {[%emt 0:01:12]} g6 {[%emt 0:00:42]} 37. g4 {[%emt 0:01:38]} Nc8 {[%emt 0:00:26]} 38. Rd7 {[%emt 0:02:11]} Nh6 {[%emt 0:00:32]} 39. Rd8+ {[%emt 0:01:04]} Kg7 40. Rxc8 {[%emt 0:00:11]} 1-0

[Event "EYTCC U18 Open 2019"]
[Site "Pardubice"]
[Date "2019.07.12"]
[Round "2.31"]
[White "Parvanyan, Ashot"]
[Black "Kevlishvili, Robby"]
[Result "1-0"]
[ECO "D02"]
[WhiteElo "2423"]
[BlackElo "2480"]
[Annotator "ChessBase"]
[PlyCount "103"]
[EventDate "2019.07.11"]
[EventType "swiss"]
[EventCountry "CZE"]
[SourceTitle "playchess.com"]
[Source "ChessBase"]
[SourceQuality "1"]
[WhiteTeam "Germany"]
[BlackTeam "Netherlands"]
[WhiteTeamCountry "GER"]
[BlackTeamCountry "NED"]
[TimeControl "40/5400+30:1800+30"]

1. Nf3 {[%emt 0:00:00]} d5 {[%emt 0:00:00]} 2. d4 {[%emt 0:00:00]} Nf6 {[%emt 0:00:00]} 3. c4 {[%emt 0:00:20]} c6 {[%emt 0:00:00]} 4. Qb3 {[%emt 0:00:34]} dxc4 {[%emt 0:00:18]} 5. Qxc4 {[%emt 0:00:08]} Bg4 {[%emt 0:00:09]} 6. Nbd2 {[%emt 0:00:38]} Nbd7 {[%emt 0:00:11]} 7. g3 {[%emt 0:00:30]} e6 {[%emt 0:00:27]} 8. Bg2 {[%emt 0:00:11]} Be7 {[%emt 0:00:34]} 9. O-O {[%emt 0:00:27]} O-O {[%emt 0:00:07]} 10. b3 {[%emt 0:00:27]} Rc8 {[%emt 0:00:50]} 11. Bb2 {[%emt 0:00:31]} Bh5 {[%emt 0:00:40]} 12. Rfc1 {[%emt 0:11:27]} h6 {[%emt 0:02:05]} 13. e3 {[%emt 0:06:28]} Bg6 {[%emt 0:00:51]} 14. Qe2 {[%emt 0:01:47]} Qc7 {[%emt 0:03:33]} 15. Nc4 {[%emt 0:02:51]} Rfd8 {[%emt 0:03:08]} 16. a3 {[%emt 0:04:00]} Nb6 {[%emt 0:11:22]} 17. Nfe5 {[%emt 0:11:14]} Bh7 {[%emt 0:01:42]} 18. Bc3 {[%emt 0:08:01]} Nxc4 {[%emt 0:04:26]} 19. Qxc4 {[%emt 0:01:43]} Ne4 {[%emt 0:03:28]} 20. Be1 {[%emt 0:04:43]} Bd6 {[%emt 0:03:49]} 21. Nd3 {[%emt 0:05:00]} b5 {[%emt 0:24:35]} 22. Qc2 {[%emt 0:00:20]} c5 {[%emt 0:00:09]} 23. Qe2 {[%emt 0:07:13]} Qb6 {[%emt 0:00:36]} 24. f3 {[%emt 0:04:56]} Nf6 {[%emt 0:02:17]} 25. Nxc5 {[%emt 0:01:51]} Bxc5 {[%emt 0:00:13]} 26. dxc5 {[%emt 0:00:27]} Rxc5 {[%emt 0:00:24]} 27. Bf2 {[%emt 0:05:48]} Rxc1+ {[%emt 0:15:29]} 28. Rxc1 {[%emt 0:00:10]} Qa5 {[%emt 0:00:07]} 29. Qb2 {[%emt 0:04:28]} Bg6 {[%emt 0:09:26]} 30. e4 {[%emt 0:02:23]} Rd3 {[%emt 0:00:42]} 31. Rc8+ {[%emt 0:10:26]} Kh7 {[%emt 0:00:08]} 32. Qc2 {[%emt 0:00:55]} Rd2 {[%emt 0:01:51]} 33. Qc5 {[%emt 0:05:41]} Nd7 {[%emt 0:05:25]} 34. Qxa7 {[%emt 0:00:41]} Rd1+ {[%emt 0:00:21]} 35. Bf1 {[%emt 0:00:03]} Qd2 {[%emt 0:00:06]} 36. Kg2 {[%emt 0:01:04]} Nf6 {[%emt 0:06:09]} 37. Qb8 {[%emt 0:00:30]} Bh5 {[%emt 0:00:36]} 38. g4 {[%emt 0:00:30]} Bxg4 {[%emt 0:00:56]} 39. Rh8+ {[%emt 0:00:20]} Kg6 {[%emt 0:00:03]} 40. Qg3 {[%emt 0:00:38]} Qc1 {[%emt 0:01:12]} 41. e5 {[%emt 0:04:22]} Rxf1 {[%emt 0:04:35]} 42. exf6 {[%emt 0:00:17]} Rxf2+ {[%emt 0:00:14]} 43. Qxf2 {[%emt 0:04:06]} Bf5 {[%emt 0:00:19]} 44. fxg7 {[%emt 0:07:59]} Kxg7 {[%emt 0:00:06]} 45. Rd8 {[%emt 0:01:26]} e5 {[%emt 0:06:34]} 46. Rd5 {[%emt 0:00:55]} Kf6 {[%emt 0:00:42]} 47. Qd2 {[%emt 0:00:41]} Qxa3 {[%emt 0:01:45]} 48. Qxh6+ {[%emt 0:00:34]} Ke7 {[%emt 0:00:11]} 49. Rxe5+ {[%emt 0:03:02]} Be6 {[%emt 0:00:06]} 50. Qh4+ {[%emt 0:02:25]} Kd7 {[%emt 0:02:29]} 51. Qd4+ {[%emt 0:01:54]} Kc6 {[%emt 0:00:05]} 52. b4 {[%emt 0:00:11] Kd5} 1-0

[Event "EYTCC U18 Open 2019"]
[Site "Pardubice"]
[Date "2019.07.12"]
[Round "2.32"]
[White "Vrolijk, Liam"]
[Black "Schmidek, Emil"]
[Result "1/2-1/2"]
[ECO "A16"]
[WhiteElo "2478"]
[BlackElo "2391"]
[Annotator "ChessBase"]
[PlyCount "69"]
[EventDate "2019.07.11"]
[EventType "swiss"]
[EventCountry "CZE"]
[SourceTitle "playchess.com"]
[Source "ChessBase"]
[SourceQuality "1"]
[WhiteTeam "Netherlands"]
[BlackTeam "Germany"]
[WhiteTeamCountry "NED"]
[BlackTeamCountry "GER"]
[TimeControl "40/5400+30:1800+30"]

1. c4 {[%emt 0:00:00]} Nf6 {[%emt 0:00:00]} 2. Nc3 {[%emt 0:00:00]} d5 {[%emt 0:00:00]} 3. cxd5 {[%emt 0:00:00]} Nxd5 {[%emt 0:00:00]} 4. Nf3 {[%emt 0:00:24]} g6 {[%emt 0:00:00]} 5. h4 {[%emt 0:01:49]} Bg7 {[%emt 0:00:12]} 6. e4 {[%emt 0:01:18]} Nxc3 {[%emt 0:00:12]} 7. dxc3 {[%emt 0:00:09]} Qxd1+ {[%emt 0:00:04]} 8. Kxd1 {[%emt 0:00:07]} Nd7 {[%emt 0:00:07]} 9. h5 {[%emt 0:01:46]} Nc5 {[%emt 0:00:23]} 10. h6 {[%emt 0:02:15]} Bf8 {[%emt 0:00:07]} 11. e5 {[%emt 0:00:41]} Bg4 {[%emt 0:00:20]} 12. Be3 {[%emt 0:01:26]} O-O-O+ {[%emt 0:00:25]} 13. Kc2 {[%emt 0:01:24]} Bxf3 {[%emt 0:45:39]} 14. gxf3 {[%emt 0:08:04]} e6 {[%emt 0:00:33]} 15. Re1 {[%emt 0:11:00]} a5 {[%emt 0:05:47]} 16. Rh4 {[%emt 0:11:25]} Be7 {[%emt 0:05:27]} 17. Rc4 {[%emt 0:01:15]} Nd7 {[%emt 0:01:36]} 18. f4 {[%emt 0:07:16]} c6 {[%emt 0:15:05]} 19. Ra4 {[%emt 0:05:19]} b6 {[%emt 0:00:07]} 20. b4 {[%emt 0:04:27]} Kc7 {[%emt 0:04:03]} 21. bxa5 {[%emt 0:07:58]} b5 {[%emt 0:00:25]} 22. Re4 {[%emt 0:08:10]} Ra8 {[%emt 0:02:46]} 23. a4 {[%emt 0:00:44]} Rxa5 {[%emt 0:01:11]} 24. axb5 {[%emt 0:00:06]} cxb5 {[%emt 0:00:10]} 25. Rb1 {[%emt 0:01:54]} Rb8 {[%emt 0:00:24]} 26. Rd4 {[%emt 0:01:50]} Ra2+ {[%emt 0:03:13]} 27. Kd1 {[%emt 0:01:17]} Ra5 {[%emt 0:00:45]} 28. Rd2 {[%emt 0:02:19]} Bf8 {[%emt 0:08:40]} 29. Rdb2 {[%emt 0:00:21]} Kc6 {[%emt 0:00:23]} 30. Bg2+ {[%emt 0:00:47]} Kc7 {[%emt 0:00:10]} 31. Kc2 {[%emt 0:02:23]} Be7 {[%emt 0:05:48]} 32. Bf1 {[%emt 0:02:45]} Kc6 {[%emt 0:00:08]} 33. Bg2+ {[%emt 0:03:28]} Kc7 {[%emt 0:00:06]} 34. Bf1 {[%emt 0:04:01]} Kc6 {[%emt 0:01:23]} 35. Bg2+ {[%emt 0:00:09]} 1/2-1/2

[Event "EYTCC U18 Open 2019"]
[Site "Pardubice"]
[Date "2019.07.12"]
[Round "2.33"]
[White "Ivic, Velimir"]
[Black "Gumularz, Szymon"]
[Result "1-0"]
[ECO "C72"]
[WhiteElo "2510"]
[BlackElo "2502"]
[Annotator "ChessBase"]
[PlyCount "45"]
[EventDate "2019.07.11"]
[EventType "swiss"]
[EventCountry "CZE"]
[SourceTitle "playchess.com"]
[Source "ChessBase"]
[SourceQuality "1"]
[WhiteTeam "Serbia"]
[BlackTeam "Poland"]
[WhiteTeamCountry "SRB"]
[BlackTeamCountry "POL"]
[TimeControl "40/5400+30:1800+30"]

1. e4 {[%emt 0:00:00]} e5 {[%emt 0:00:00]} 2. Nf3 {[%emt 0:00:00]} Nc6 {[%emt 0:00:00]} 3. Bb5 {[%emt 0:00:00]} a6 {[%emt 0:00:13]} 4. Ba4 {[%emt 0:00:01]} d6 {[%emt 0:00:25]} 5. O-O {[%emt 0:02:24]} Bd7 {[%emt 0:00:06]} 6. d4 {[%emt 0:02:22]} Nf6 {[%emt 0:00:13]} 7. Bxc6 {[%emt 0:01:59]} Bxc6 {[%emt 0:02:04]} 8. Re1 {[%emt 0:00:09]} Be7 {[%emt 0:15:03]} 9. Nc3 {[%emt 0:00:43]} O-O {[%emt 0:12:42]} 10. dxe5 {[%emt 0:03:34]} dxe5 {[%emt 0:00:47]} 11. Qxd8 {[%emt 0:00:05]} Raxd8 {[%emt 0:06:50]} 12. Nxe5 {[%emt 0:00:15]} Bxe4 {[%emt 0:05:51]} 13. Nxe4 {[%emt 0:00:59]} Nxe4 {[%emt 0:00:09]} 14. Nd3 {[%emt 0:00:16]} f5 {[%emt 0:00:45]} 15. f3 {[%emt 0:00:55]} Bc5+ {[%emt 0:13:06]} 16. Nxc5 {[%emt 0:00:46]} Nxc5 {[%emt 0:00:05]} 17. Bg5 {[%emt 0:00:12]} Rd5 {[%emt 0:03:34]} 18. Be7 {[%emt 0:01:00]} Na4 {[%emt 0:02:19]} 19. Bxf8 {[%emt 0:00:59]} Kxf8 {[%emt 0:00:56]} 20. Rad1 {[%emt 0:02:31]} Rc5 {[%emt 0:00:47]} 21. b3 {[%emt 0:02:16]} Nb6 {[%emt 0:00:19]} 22. c4 {[%emt 0:01:08]} Kf7 {[%emt 0:00:20]} 23. Kf2 {[%emt 0:01:25]} 1-0

[Event "EYTCC U18 Open 2019"]
[Site "Pardubice"]
[Date "2019.07.12"]
[Round "2.34"]
[White "Teclaf, Pawel"]
[Black "Radovanovic, Mihajlo"]
[Result "0-1"]
[ECO "B87"]
[WhiteElo "2454"]
[BlackElo "2500"]
[Annotator "ChessBase"]
[PlyCount "86"]
[EventDate "2019.07.11"]
[EventType "swiss"]
[EventCountry "CZE"]
[SourceTitle "playchess.com"]
[Source "ChessBase"]
[SourceQuality "1"]
[WhiteTeam "Poland"]
[BlackTeam "Serbia"]
[WhiteTeamCountry "POL"]
[BlackTeamCountry "SRB"]
[TimeControl "40/5400+30:1800+30"]

1. e4 {[%emt 0:00:00]} c5 {[%emt 0:00:00]} 2. Nf3 {[%emt 0:00:00]} d6 {[%emt 0:00:00]} 3. d4 {[%emt 0:00:00]} cxd4 {[%emt 0:00:00]} 4. Nxd4 {[%emt 0:00:00]} Nf6 {[%emt 0:00:00]} 5. Nc3 {[%emt 0:00:00]} a6 {[%emt 0:00:04]} 6. Bc4 {[%emt 0:00:00]} e6 {[%emt 0:00:24]} 7. Bb3 {[%emt 0:00:00]} b5 {[%emt 0:00:58]} 8. Bg5 {[%emt 0:00:59]} Be7 {[%emt 0:00:56]} 9. Qf3 {[%emt 0:00:04]} Qb6 {[%emt 0:01:50]} 10. O-O {[%emt 0:06:00]} Nbd7 {[%emt 0:11:42]} 11. Rad1 {[%emt 0:06:08]} b4 {[%emt 0:08:15]} 12. Na4 {[%emt 0:22:14]} Qb7 {[%emt 0:00:45]} 13. Rfe1 {[%emt 0:03:14]} O-O {[%emt 0:06:08]} 14. c3 {[%emt 0:04:48]} a5 {[%emt 0:04:35]} 15. Qg3 {[%emt 0:04:50]} Ne5 {[%emt 0:02:38]} 16. f4 {[%emt 0:10:13]} Nc6 {[%emt 0:03:04]} 17. e5 {[%emt 0:08:27]} dxe5 {[%emt 0:04:57]} 18. fxe5 {[%emt 0:04:14]} Nh5 {[%emt 0:09:10]} 19. Qh4 {[%emt 0:03:30]} g6 {[%emt 0:01:09]} 20. Nf3 {[%emt 0:00:28]} h6 {[%emt 0:01:39]} 21. Bxe7 {[%emt 0:03:18]} Nxe7 {[%emt 0:01:11]} 22. Qf2 {[%emt 0:02:28]} bxc3 {[%emt 0:07:37]} 23. bxc3 {[%emt 0:01:21]} Qa7 {[%emt 0:01:55]} 24. Nc5 {[%emt 0:04:20]} Nf4 {[%emt 0:04:34]} 25. Qe3 {[%emt 0:05:07]} Nf5 {[%emt 0:01:31]} 26. Qf2 {[%emt 0:02:20]} Ba6 {[%emt 0:03:44]} 27. Rd7 {[%emt 0:03:06]} Qb6 {[%emt 0:00:21]} 28. Nxa6 {[%emt 0:00:27]} Qxa6 {[%emt 0:02:28]} 29. Qd2 {[%emt 0:01:00]} Qc6 {[%emt 0:02:01]} 30. Rd1 {[%emt 0:02:36]} g5 {[%emt 0:05:37]} 31. h4 {[%emt 0:01:01]} Qxc3 {[%emt 0:05:07]} 32. Qxc3 {[%emt 0:01:33]} Ne2+ {[%emt 0:00:04]} 33. Kh2 {[%emt 0:00:37]} Nxc3 {[%emt 0:00:05]} 34. Rc1 {[%emt 0:00:24]} Rac8 {[%emt 0:03:09]} 35. hxg5 {[%emt 0:00:39]} a4 {[%emt 0:00:31]} 36. Bd1 Ne3 {[%emt 0:01:15]} 37. Bxa4 {[%emt 0:02:25]} Nxa4 {[%emt 0:01:44]} 38. Rxc8 {[%emt 0:00:36]} Rxc8 {[%emt 0:00:07]} 39. gxh6 {[%emt 0:00:27]} Ng4+ {[%emt 0:00:33]} 40. Kg3 {[%emt 0:00:35]} Nxh6 {[%emt 0:00:17]} 41. Kh4 {[%emt 0:11:55]} Nc5 {[%emt 0:06:24]} 42. Ra7 {[%emt 0:00:52]} Ne4 {[%emt 0:00:56]} 43. Nd4 {[%emt 0:01:14]} Rc1 {[%emt 0:00:52]} 0-1